Cogmind - Beta 13 @@@ ROGUE MODE // 2024.08.05 @ 21:41:09 Player: Archaic Result: Destroyed by Y-45 Defender with Beam Rifle Performance ------------- Evolutions (1) 500 Regions Visited (3) 600 Robots Destroyed (18) 90 Value Destroyed (557) 557 Prototype IDs (0) 0 Alien Tech Used (0) 0 Bonus (0) 0 TOTAL SCORE: 1747 Bonus ------- None Cogmind --------- Core Integrity 0/400 Matter 300/500 Energy 100/100 System Corruption 0% Temperature Cool (18) Movement Walking (190) Ox1 Location -9/Mines Parts ------- > --- POWER (1) -------- (None) > --- PROPULSION (3) --- Aluminum Leg > --- UTILITY (3) ------ Medium Storage Unit High-capacity Matter Pod > --- WEAPON (2) ------- (None) > --- INVENTORY (10) --- Heat Sink Medium Storage Unit Peak State ------------ > --- POWER ------------ Light Ion Engine > --- PROPULSION ------- Aluminum Leg Aluminum Leg Aluminum Leg > --- UTILITY ---------- Medium Storage Unit High-capacity Matter Pod Sensor Array > --- WEAPON ----------- Heavy Assault Rifle Shotgun > --- INVENTORY -------- Light Nuclear Core Aluminum Leg Aluminum Leg Wheel Heat Sink Medium Storage Unit Small Laser Assault Rifle Mining Laser [Rating: 12] Favorites ----------- Power Light Ion Engine Engine Light Ion Engine Power Core Light Nuclear Core Propulsion Aluminum Leg Leg Aluminum Leg Utility Sensor Array Device Sensor Array Storage Medium Storage Unit Weapon Assault Rifle Energy Gun Small Laser Ballistic Gun Assault Rifle Special Weapon Mining Laser Build | -11 -10 -9 -9 ------- Run | Yrd Mat Mat Min Slots Evolved 2 | . . 2 . Power . | . . . . Propulsion 1 | . . 1 . Utility 1 | . . 1 . Weapon . | . . . . Parts Attached 23 | 6 5 11 1 Power 3 | 1 . 2 . Engine 2 | 1 . 1 . Core 1 | . . 1 . Reactor . | . . . . Propulsion 9 | 2 3 4 . Treads . | . . . . Leg 9 | 2 3 4 . Wheel . | . . . . Hover . | . . . . Flight . | . . . . Utility 4 | 1 2 1 . Device 1 | . 1 . . Storage 3 | 1 1 1 . Processor . | . . . . Hackware . | . . . . Protection . | . . . . Artifact . | . . . . Weapon 7 | 2 . 4 1 Energy Gun 2 | . . 2 . Energy Cannon . | . . . . Ballistic Gun 4 | 2 . 2 . Ballistic Cannon . | . . . . Launcher . | . . . . Special Weapon 1 | . . . 1 Impact Weapon . | . . . . Slashing Weapon . | . . . . Piercing Weapon . | . . . . Special Melee Weapon . | . . . . Unidentified Prototypes . | . . . . Parts Lost 15 | . . 9 6 Power 3 | . . 2 1 Propulsion 5 | . . 3 2 Utility 1 | . . . 1 Weapon 6 | . . 4 2 Highest Loss Streak 7 | . . 7 6 To Critical Strikes . | . . . . Average Slot Usage (%) 95 | . 96 93 96 Engine 10 | . 14 8 . Core 1 | . . . 11 Leg 29 | . 28 30 30 Device 11 | . 11 11 11 Storage 17 | . 14 21 22 Energy Gun 1 | . . 1 11 Ballistic Gun 21 | . 28 17 . Naked Turns . | . . . . Heaviest Build 24 | 11 17 24 22 Greatest Support 30 | 20 20 30 30 Greatest Overweight (x) 5 | 3 . 5 1 Average Overweight (x) . | . . . . Largest Inventory Capacity 10 | 8 10 10 10 Average Capacity 9 | 7 9 10 10 Most Carried 10 | 4 10 10 2 Average Carried 7 | 2 8 7 2 Final Capacity 10 | 8 10 10 10 Final Carried 10 | 4 10 3 2 Class Distribution -------------------- 100% | Mutant Dominant Class ---------------- Mutant | -10/Materials Mutant | -9/Materials Mutant | -9/Mines Resources | -11 -10 -9 -9 ----------- Run | Yrd Mat Mat Min Matter Collected 591 | 194 162 235 . Remotely . | . . . . Salvage Created 661 | . 170 491 . Parts 39 | . 10 29 . Haulers Intercepted . | . . . . Recyclers Shooed . | . . . . Parts Field Recycled . | . . . . Retrieved Matter . | . . . . Parts Self-Destructed . | . . . . Prevented . | . . . . Kills | -11 -10 -9 -9 ------- Run | Yrd Mat Mat Min Combat Hostiles Destroyed 13 | . 3 10 . Guns 13 | . 3 10 . Classes Destroyed 4 | . 3 1 . Operator 3 | . 1 2 . Watcher 2 | . 1 1 . Grunt 11 | . 3 8 . Sentry 2 | . . 2 . Best Kill Streak 4 | . 2 4 . Combat Bots Only 4 | . 2 4 . Max Kills in Single Turn 1 | . 1 1 . Gunslinging . | . . . . Exploded . | . . . . Melee . | . . . . Uniques/NPCs Destroyed . | . . . . Combat | -11 -10 -9 -9 -------- Run | Yrd Mat Mat Min Hostile Shots Fired 201 | . 29 149 23 Missed 48 | . 7 34 7 Damage Taken 1831 | . 278 1322 231 Core 422 | . 15 364 43 Absorbed by Shields . | . . . . Core Remaining (%) 97 | 100 94 . . Volleys Fired 75 | . 22 50 3 Largest 2 | . 2 2 1 Hottest 63 | . 40 63 40 Shots Fired 126 | . 44 79 3 Gun 126 | . 44 79 3 Cannon . | . . . . Launcher . | . . . . Special . | . . . . Kinetic 105 | . 44 61 . Thermal 21 | . . 18 3 Explosive . | . . . . Electromagnetic . | . . . . Robot Hit Streak 12 | . 12 9 8 Robot Miss Streak 2 | . 2 2 1 Penetration Max . | . . . . Secondary Targets 3 | . 1 2 . Max Gunslinging Chain 1 | . 1 1 . Shots Hit Robots 89 | . 33 54 2 Core Hits 39 | . 11 27 1 Critical Kills . | . . . . Critical Parts Destroyed 1 | . . 1 . Critical Strikes 1 | . . 1 . Destroy 1 | . . 1 . Melee Attacks . | . . . . Impact . | . . . . Slashing . | . . . . Piercing . | . . . . Sneak Attacks . | . . . . Combat Hostiles . | . . . . Follow-up Attacks . | . . . . Damage Inflicted 1017 | . 354 641 22 Guns 1015 | . 354 639 22 Cannons . | . . . . Explosions . | . . . . Melee . | . . . . Ramming 2 | . . 2 . Kinetic 842 | . 354 488 . Thermal 173 | . . 151 22 Explosive . | . . . . Electromagnetic . | . . . . Impact . | . . . . Slashing . | . . . . Piercing . | . . . . Highest Corruption . | . . . . Average Corruption . | . . . . Corruption Purged . | . . . . Corruption Blocked . | . . . . Overload Shots . | . . . . Overflow Damage . | . . . . Projectiles . | . . . . Explosions . | . . . . Melee . | . . . . Knockbacks . | . . . . Impact . | . . . . Kinetic . | . . . . Secondary . | . . . . Self-Inflicted Damage . | . . . . Shots . | . . . . Rammed 1 | . . 1 . Targets Rammed 2 | . . 2 . Kicked 1 | . . 1 . Crushed . | . . . . Highest Temperature 102 | . 21 102 16 Average Temperature 36 | . 9 50 11 Received Heat Transfer 855 | . 147 627 81 Siege Activations . | . . . . Robots Corrupted . | . . . . Combat Hostiles . | . . . . Parts Fried . | . . . . Impact Corruptions . | . . . . Robots Melted . | . . . . Combat Hostiles . | . . . . Parts Melted 2 | . . 2 . Heat Transferred 400 | . . 350 50 Parts Sabotaged . | . . . . Parts Stolen . | . . . . Parts Stripped . | . . . . Power Chain Reactions . | . . . . Alert | -11 -10 -9 -9 ------- Run | Yrd Mat Mat Min Peak Influence 175 | . 92 175 72 Initial 67 | . . 1 67 Average 45 | . 35 60 64 Maximum Alert Level . | . . . . Low Security (%) 100 | 100 100 100 100 Level 1 . | . . . . Level 2 . | . . . . Level 3 . | . . . . Level 4 . | . . . . Level 5 . | . . . . High Security . | . . . . Max Security . | . . . . Squads Dispatched 4 | . 1 3 . Investigation 2 | . . 2 . Extermination . | . . . . Reinforcement 2 | . 1 1 . Assault . | . . . . Garrison . | . . . . Intercept . | . . . . Searches Triggered . | . . . . Construction Impeded . | . . . . Haulers Reinforced . | . . . . Active Scanning Responses . | . . . . Cargo Convoy Interrupts . | . . . . Stealth | -11 -10 -9 -9 --------- Run | Yrd Mat Mat Min Distress Signals 4 | . . 4 . Communications Jammed . | . . . . Distress Signals . | . . . . Times Spotted 40 | . 8 30 2 Peak Tracking Total 12 | . 3 12 2 Tactical Retreats 2 | . . 2 . Traps | -11 -10 -9 -9 ------- Run | Yrd Mat Mat Min Traps Triggered 3 | . 1 2 . Indirectly . | . . . . Trap Hack Attempts . | . . . . Triggered . | . . . . Disarmed . | . . . . Reprogrammed . | . . . . Reused . | . . . . Traps Extracted . | . . . . Installed . | . . . . Triggered . | . . . . Machines | -11 -10 -9 -9 ---------- Run | Yrd Mat Mat Min Machines Disabled . | . . . . Max in Single Turn . | . . . . Machines Repaired . | . . . . Machines Dismantled . | . . . . Machines Sabotaged . | . . . . Overloaded Fab Kills . | . . . . Hacking | -11 -10 -9 -9 --------- Run | Yrd Mat Mat Min Machines Accessed 6 | . 4 2 . Terminals 5 | . 3 2 . Fabricators . | . . . . Repair Stations . | . . . . Recycling Units 1 | . 1 . . Scanalyzers . | . . . . Garrison Access . | . . . . Total Hacks 12 | . 8 4 . Successful 2 | . 2 . . Failed 10 | . 6 4 . Catastrophic 3 | . 2 1 . Database Lockouts . | . . . . Manual 7 | . 3 4 . Terminals 11 | . 7 4 . Fabricators . | . . . . Repair Stations . | . . . . Recycling Units 1 | . 1 . . Scanalyzers . | . . . . Garrison Access . | . . . . Terminal Hacks 1 | . 1 . . Locate Traps 1 | . 1 . . Fabricator Hacks . | . . . . Repair Station Hacks . | . . . . Recycling Unit Hacks 1 | . 1 . . Process 1 | . 1 . . Scanalyzer . | . . . . Garrison Access Hacks . | . . . . Unauthorized Hacks . | . . . . Terminals . | . . . . Fabricators . | . . . . Repair Stations . | . . . . Recycling Units . | . . . . Scanalyzers . | . . . . Garrison Access . | . . . . Data Cores Recovered 2 | . 1 1 . Used . | . . . . Hacking Detections 5 | . 3 2 . Full Trace Events . | . . . . Feedback Events . | . . . . Feedback Blocked . | . . . . Robot Schematics Acquired . | . . . . Robots Built . | . . . . Authchips . | . . . . Time . | . . . . Total Robot Build Rating . | . . . . Part Schematics Acquired . | . . . . Parts Built . | . . . . Authchips . | . . . . Time . | . . . . Total Part Build Rating . | . . . . Parts Repaired . | . . . . Time . | . . . . Parts Recycled . | . . . . Recycled Matter 15 | . 15 . . Retrieved Matter . | . . . . Retrieved Components . | . . . . Parts Scanalyzed . | . . . . Part Schematics Acquired . | . . . . Parts Damaged . | . . . . Bothacking | -11 -10 -9 -9 ------------ Run | Yrd Mat Mat Min Used RIF Installer . | . . . . Robots Hacked . | . . . . Non-combat . | . . . . Combat . | . . . . Robot Hacks Applied . | . . . . Relay Couplers Released . | . . . . Fabnet Peak Effective % . | . . . . Robots Rewired . | . . . . Allies Hacked . | . . . . Hacks Repelled . | . . . . Allies | -11 -10 -9 -9 -------- Run | Yrd Mat Mat Min Total Allies . | . . . . Largest Group . | . . . . Highest-Rated Group . | . . . . Highest-Rated Ally . | . . . . Total Orders . | . . . . Ally Attacks . | . . . . Total Damage . | . . . . Kills . | . . . . Allies Corrupted . | . . . . Allies Melted . | . . . . Intel | -11 -10 -9 -9 ------- Run | Yrd Mat Mat Min Robot Analysis Total . | . . . . Derelict Logs Recovered . | . . . . Drone Launches . | . . . . Drone Recoveries . | . . . . Exploration | -11 -10 -9 -9 ------------- Run | Yrd Mat Mat Min Turns Passed 1218 | 74 586 459 99 Spaces Moved 707 | 49 373 213 72 Core 21 | 17 . 4 . Treads . | . . . . Legs 686 | 32 373 209 72 Wheels . | . . . . Hover . | . . . . Flight . | . . . . Fastest Speed 50 | 50 120 120 120 Average Speed 122 | 119 120 124 127 Slowest Speed 300 | 200 120 300 190 Overloaded Moves . | . . . . Propulsion Burnouts . | . . . . Robots Hopped . | . . . . Cave-ins Triggered . | . . . . Exploration Rate (%) 22 | 3 50 19 18 Regions Visited 3 Branch Regions 1 Pre-discovered Areas . | . . . . Known Exits Taken . | . . . . Unknown Exits Taken 3 | 1 1 1 . Scrap Searched . | . . . . Spaces Dug . | . . . . Terrain Destroyed . | . . . . Melee . | . . . . Projectile . | . . . . AOE . | . . . . Terrain Rammed . | . . . . Walls Destroyed . | . . . . Machines Disabled . | . . . . Actions | -11 -10 -9 -9 --------- Run | Yrd Mat Mat Min Total 942 | 64 474 328 76 Wait 100 | . 54 46 . Move 704 | 48 372 212 72 Hop . | . . . . Pick Up 29 | 10 14 5 . Fast Attach . | . . . . Attach 18 | 6 1 10 1 Detach . | . . . . Swap 5 | . 4 1 . Drop 9 | . 7 2 . Fire 75 | . 22 50 3 Melee . | . . . . Ram 1 | . . 1 . Kick 1 | . . 1 . Crush . | . . . . Escape Stasis . | . . . . Rewire . | . . . . Trap . | . . . . Miscellaneous . | . . . . Route ------- -11/Scrapyard -10/Materials -9/Materials -9/Mines History --------- Turn | Location | Event 18 | -11/Scrapyard | Discovered new exit (range 16) 75 | -11/Scrapyard | Entered Materials 305 | -10/Materials | Build established: Mutant 500 | -10/Materials | Discovered new exit (range 6) 661 | -10/Materials | Entered another Materials area 661 | -9/Materials | Evolved 2 slots: Propulsion x1, Utility x1 1056 | -9/Materials | Discovered new exit (range 13) 1068 | -9/Materials | Core integrity fell below 50% 1090 | -9/Materials | Core integrity fell below 20% 1103 | -9/Materials | Lost 7 parts (1p3n3w) 1120 | -9/Materials | Entered Mines 1219 | -9/Mines | Destroyed by Y-45 Defender with Beam Rifle Last Messages --------------- 01109_ K-01 Serf collects debris. 01115_ K-01 Serf cleans the Electrolysis Chamber. LOCATION=UNKNOWN GOAL=ESCAPE Something is scanning the area. 01121_ A derelict emerges from the shadows: "What are you doing alone down here?" 01123_ U8-O7P(g): "Well, at least you look like you can take care of yourself!" 01125_ U8-O7P(g): "I have the funny feeling that things are about to get a lot worse around here, see you around!" 01125_ U8-O7P(g) slips back into the shadows. 01197_ Aluminum Leg destroyed. 01206_ T-07 Excavator suffers critical hit (Burn). 01209_ Mining Laser destroyed. 01210_ Lgt. Nuclear Core destroyed. 01210_ Sml. Laser destroyed. 01212_ Aluminum Leg destroyed. 01219_ Sensor Array destroyed. Map ----- +----------------------------------------------------+ | | | | | | | | | | | | | | | | | | | | | | | | | | | ?????????????????????????????????????????????????? | | ?????????????????????????????????????????????????? | | ?????????????????????????????????????????????????? | | ?????????######??????????????????????????????????? | | ????????## ##???####??????????????????????????? | | ??????### #???# ##?????????????????????????? | | ???#### ## #???# ##????????????????????????? | | ??## ########?## ##???????????????????????? | | ??# ##???##!]## ##??????????????????????? | | ??# #????#"!! # ##?????????????????????? | | ??# ##????# / #######???????????????? | | ??# ###?????# /Y t #???????????????? | | ??# #???????#"!] #Y @ #????????????????????? | | ??# #???????##!?## ##????????????????????? | | ??# #??????????## ###?????????????????????? | | ??# #??????????# ##???????????????????????? | | ??# #??????????# #????????????????????????? | | ??# ######?????# #????????????????????????? | | ??# # !##????# #????????????????????????? | | ??# ! #????## #????????????????????????? | | ??# #?????## ##????????????????????????? | | ??# ] =##?????### ##?????????????????????????? | | ??## #???????# #??????????????????????????? | | ???#### ##??###### #??????????????????????????? | | ??????## ###???# #??????????????????????????? | | ???????# #?????# #### #??????????????????????????? | | ???????# #?????# #??# #??????????????????????????? | | ???????# ####### #??# #??????????????????????????? | | ???????# #??# ??????????????????????????? | | ???????###### ####??# ??????????????????????????? | | ????????????# #?????# #??????????????????????????? | | ????????????# #?????# #??????????????????????????? | | ????????????# #?????# #??????????????????????????? | | ????????????# #?????? ???????????????????????????? | | ????????????# #??????#???????????????????????????? | | ????????????# #??????????????????????????????????? | | ????????????# #??????????????????????????????????? | +----------------------------------------------------+ Best States ------------- Heat Dissipation 28 Energy Generation 14 Energy Capacity 160 Matter Stores 338 Matter Capacity 500 Sight Range 16 Robot Scan Range 14 Terrain Scan Density 10 Evasion (%) 55 Item Schematics ----------------- None Robot Schematics ------------------ None Fabricated ------------ Nothing Alien Tech Used ----------------- None Achievements -------------- None Challenges ------------ None Game ------ Seed FireAngularMace Manual? 0 Play Time 00:09:39 Cumulative 9.1 hours Start 2024.08.05 @ 21:31:54 End 2024.08.05 @ 21:41:09 Sessions 1 Manual Loads 0 Difficulty Rogue Special Mode None Game No. 15 Rogue 1 Adventurer 14 Explorer 0 Win Type - Total 0 Types 0/0/0/0/0/0/0/0/0 Lore% 16 Gallery% 18 Achievement% 15 Wizard Run 0 Options --------- Layout 1 ASCII 0 Keyboard 0 Movement Arrows Keybinds 0 Fullscreen 1 Font 16/SmallcapsGlow Map View 55x38 Zoom Use 0% Tactical HUD 1 Map Filters NONE Filters NONE Steam 1 RUN: 9bf6b297-9ef2-4225-bb69-be8700902932